Cogmind - Beta 12 @@@ ROGUE MODE // 2023.03.13 @ 22:42:33 Player: Fleshy Vegetable Bird Result: Destroyed by C-17 Slicer with Blade Saw Performance ------------- Evolutions (2) 1000 Regions Visited (8) 1600 Robots Destroyed (119) 595 Value Destroyed (3031) 3031 Prototype IDs (7) 140 Alien Tech Used (0) 0 Bonus (1306) 1306 TOTAL SCORE: 7672 Bonus ------- High Alert Combat Kills 211 Follower Combat Kills 195 Entered Garrisons 400 Used RIF Installer 500 Cogmind --------- Core Integrity 0/550 Matter 290/300 Energy 74/100 System Corruption 6% Temperature Cool (0) Movement Rolling (80) Location -8/Garrison Parts ------- > --- POWER (1) -------- (None) > --- PROPULSION (3) --- Armored Treads Wheel > --- UTILITY (5) ------ Melee Analysis Suite System Shield System Shield > --- WEAPON (2) ------- Chainsword Chainsword > --- INVENTORY (5) ---- Cryofiber Web Improved Sensor Array Reactive Plating Pulse Rifle Peak State ------------ > --- POWER ------------ Improved Ion Engine > --- PROPULSION ------- VSS Leg VSS Leg VSS Leg > --- UTILITY ---------- Huge Storage Unit Melee Analysis Suite Improved Light Armor Plating Hacking Suite System Shield > --- WEAPON ----------- Chainsword Chainsword > --- INVENTORY -------- Light Nuclear Core Cryofiber Web High-capacity Storage Unit Improved Sensor Array Improved Terrain Scanner System Shield Relay Coupler [NC] Relay Coupler [Sentry] Pulse Rifle Improved Spread Laser Improved Spread Laser Heavy Assault Rifle Proton Missile Launcher Proton Missile Launcher Improved Datajack Tiamat Bomb Trap Tiamat Bomb Trap Tiamat Bomb Trap Tiamat Bomb Trap [Rating: 37] Favorites ----------- Power Ion Engine Engine Ion Engine Power Core Light Nuclear Core Propulsion Wheel Treads Light Treads Leg VSS Leg Wheel Wheel Utility System Shield Device Cryofiber Web Storage Huge Storage Unit Processor Melee Analysis Suite Hackware System Shield Protection Improved Light Armor Plating Weapon Chainsword Energy Gun Improved Spread Laser Ballistic Gun Heavy Assault Rifle Launcher Proton Missile Launcher Impact Weapon Maul Slashing Weapon Chainsword Special Melee Weapon Improved Datajack Build | -11 -10 -10 -10 -9 -8 -8 -8 -8 ------- Run | Jun Mat Min Exi Min Mat Gar Mat Gar Slots Evolved 4 | . . . . . 4 . . . Power . | . . . . . . . . . Propulsion 1 | . . . . . 1 . . . Utility 3 | . . . . . 3 . . . Weapon . | . . . . . . . . . Parts Attached 81 | 8 6 . 2 2 19 10 23 11 Power 7 | 1 . . . . 2 1 2 1 Engine 2 | 1 . . . . . . 1 . Core 5 | . . . . . 2 1 1 1 Reactor . | . . . . . . . . . Propulsion 31 | 4 . . 2 1 6 2 12 4 Treads 5 | . . . . . 2 . 2 1 Leg 3 | . . . . . . . 3 . Wheel 23 | 4 . . 2 1 4 2 7 3 Hover . | . . . . . . . . . Flight . | . . . . . . . . . Utility 21 | 1 2 . . 1 6 3 4 4 Device 1 | . . . . . 1 . . . Storage 6 | 1 1 . . 1 1 1 1 . Processor 4 | . 1 . . . 1 . 1 1 Hackware 4 | . . . . . 1 1 . 2 Protection 6 | . . . . . 2 1 2 1 Artifact . | . . . . . . . . . Weapon 22 | 2 4 . . . 5 4 5 2 Energy Gun 3 | 2 . . . . 1 . . . Energy Cannon . | . . . . . . . . . Ballistic Gun 3 | . 2 . . . 1 . . . Ballistic Cannon . | . . . . . . . . . Launcher 3 | . . . . . . 2 . 1 Special Weapon . | . . . . . . . . . Impact Weapon 3 | . 2 . . . 1 . . . Slashing Weapon 9 | . . . . . 2 2 4 1 Piercing Weapon . | . . . . . . . . . Special Melee Weapon 1 | . . . . . . . 1 . Unidentified Prototypes 1 | . . . . . 1 . . . Parts Lost 23 | . . . . 1 7 1 7 7 Power 6 | . . . . . 1 1 2 2 Propulsion 11 | . . . . 1 4 . 3 3 Utility 3 | . . . . . 1 . . 2 Weapon 3 | . . . . . 1 . 2 . Highest Loss Streak 3 | . . . . 1 3 1 2 3 To Critical Strikes . | . . . . . . . . . Average Slot Usage (%) 96 | . 97 100 100 99 90 99 96 95 Engine 7 | . 14 14 14 14 2 . 7 7 Core 3 | . . . . . 6 8 1 1 Treads 2 | . . . . . 8 2 1 1 Leg 2 | . . . . . . . 6 . Wheel 20 | . 28 28 28 27 12 23 16 23 Device 1 | . . . . . 5 . . . Storage 10 | . 14 14 14 14 9 9 9 8 Processor 11 | . 12 14 14 14 11 12 9 9 Hackware 10 | . . . . . 8 14 18 16 Protection 6 | . . . . . 8 8 8 8 Impact Weapon 9 | . 19 28 28 28 11 . . . Slashing Weapon 10 | . . . . . 4 17 17 17 Naked Turns . | . . . . . . . . . Heaviest Build 107 | 13 31 31 31 31 60 107 96 105 Greatest Support 40 | 32 20 20 20 20 22 32 40 30 Greatest Overweight (x) 7 | 4 1 1 1 1 5 4 7 5 Average Overweight (x) 2 | 1 . 1 1 1 2 2 3 3 Largest Inventory Capacity 25 | 8 15 15 15 15 20 25 25 25 Average Capacity 20 | 7 13 15 15 15 19 23 25 24 Most Carried 25 | 7 14 15 15 15 20 23 25 25 Average Carried 18 | 4 10 14 14 14 17 20 22 20 Final Capacity 25 | 8 15 15 15 15 20 25 25 5 Final Carried 25 | 6 14 15 15 14 20 22 25 4 Class Distribution -------------------- 55% | Mutant 44% | Hacker-Mutant Dominant Class ---------------- Mutant | -10/Materials Mutant | -10/Mines Mutant | -10/Exiles Mutant | -9/Mines Mutant | -8/Materials Hacker-Mutant | -8/Garrison Hacker-Mutant | -8/Materials Hacker-Mutant | -8/Garrison Resources | -11 -10 -10 -10 -9 -8 -8 -8 -8 ----------- Run | Jun Mat Min Exi Min Mat Gar Mat Gar Matter Collected 1123 | 181 159 . . 40 187 137 284 135 Remotely . | . . . . . . . . . Salvage Created 3922 | 181 213 319 . 327 1000 315 1340 227 Parts 187 | 10 7 12 . 9 41 18 81 9 Haulers Intercepted 6 | . 2 . . . 2 . 2 . Recyclers Shooed 2 | . . . . . . . 2 . Parts Field Recycled . | . . . . . . . . . Retrieved Matter . | . . . . . . . . . Parts Self-Destructed . | . . . . . . . . . Prevented . | . . . . . . . . . Kills | -11 -10 -10 -10 -9 -8 -8 -8 -8 ------- Run | Jun Mat Min Exi Min Mat Gar Mat Gar Combat Hostiles Destroyed 63 | . 1 4 . 3 14 8 25 8 Melee 50 | . . . . 1 8 8 25 8 Classes Destroyed 12 | 2 5 1 . . 3 . 1 . Worker 15 | . 2 2 . 3 3 . 5 . Builder 2 | . . 1 . . . . 1 . Tunneler 17 | 5 1 4 . 3 3 . 1 . Hauler 6 | . 2 . . . 2 . 2 . Recycler 7 | 1 . 1 . 2 2 . 1 . Mechanic 1 | . . . . . . . 1 . Operator 2 | . 1 . . . . . 1 . Watcher 6 | . 1 . . . 4 . 1 . Swarmer 19 | . . . . . 3 3 9 4 Grunt 28 | . 1 4 . 3 5 4 9 2 Sentry 12 | . . . . . 5 1 6 . Hunter 4 | . . . . . 1 . 1 2 Best Kill Streak 8 | 6 6 3 . 3 5 3 8 2 Combat Bots Only 8 | . 1 2 . 2 3 3 8 2 Max Kills in Single Turn 2 | 1 1 1 . 1 1 1 2 1 Gunslinging . | . . . . . . . . . Exploded . | . . . . . . . . . Melee 2 | . . . . 1 1 1 2 1 Uniques/NPCs Destroyed . | . . . . . . . . . Combat | -11 -10 -10 -10 -9 -8 -8 -8 -8 -------- Run | Jun Mat Min Exi Min Mat Gar Mat Gar Damage Taken 3606 | . 23 87 . 178 930 493 1110 785 Core 658 | . . 51 . 42 148 86 212 119 Absorbed by Shields . | . . . . . . . . . Regen/Repaired (Parts) 357 | . . . . . 83 . 274 . Core Remaining (%) 81 | 100 . . . 62 . . . . Volleys Fired 17 | 12 . . . . 1 3 . 1 Largest 2 | 2 . . . . 1 2 . 1 Hottest 90 | 90 . . . . 75 78 . 39 Shots Fired 32 | 24 . . . . 3 4 . 1 Gun 27 | 24 . . . . 3 . . . Cannon . | . . . . . . . . . Launcher 5 | . . . . . . 4 . 1 Special . | . . . . . . . . . Kinetic . | . . . . . . . . . Thermal 27 | 24 . . . . 3 . . . Explosive . | . . . . . . . . . Electromagnetic 5 | . . . . . . 4 . 1 Robot Hit Streak 6 | 4 . . . . 6 2 . . Robot Miss Streak 2 | 2 . . . . 1 1 . . Penetration Max . | . . . . . . . . . Secondary Targets . | . . . . . . . . . Shots Hit Robots 221 | 14 11 19 . 18 53 20 69 17 Core Hits 75 | 7 1 2 . 3 14 8 33 7 Critical Kills 6 | . 1 1 . 2 2 . . . Critical Parts Destroyed 19 | . 3 4 . 4 8 . . . Critical Strikes 35 | 2 4 5 . 6 10 2 5 1 Burn 2 | 2 . . . . . . . . Smash 25 | . 4 5 . 6 10 . . . Sever 8 | . . . . . . 2 5 1 Melee Attacks 297 | . 13 21 . 24 79 39 95 26 Impact 122 | . 13 21 . 24 64 . . . Slashing 175 | . . . . . 15 39 95 26 Piercing . | . . . . . . . . . Sneak Attacks 56 | . 6 8 . 8 13 . 21 . Combat Hostiles 1 | . . . . . 1 . . . Follow-up Attacks 23 | . 2 2 . 2 7 1 6 3 Damage Inflicted 10258 | 165 619 1028 . 1122 2611 781 3308 624 Guns 197 | 165 . . . . 32 . . . Cannons . | . . . . . . . . . Explosions 69 | . . . . . . 69 . . Melee 9992 | . 619 1028 . 1122 2579 712 3308 624 Ramming . | . . . . . . . . . Kinetic . | . . . . . . . . . Thermal 197 | 165 . . . . 32 . . . Explosive . | . . . . . . . . . Electromagnetic 69 | . . . . . . 69 . . Impact 4703 | . 619 1028 . 1122 1934 . . . Slashing 5289 | . . . . . 645 712 3308 624 Piercing . | . . . . . . . . . Highest Corruption 6 | . . . . . 4 5 6 6 Average Corruption 4 | . . . . . 3 4 5 6 Corruption Purged . | . . . . . . . . . Corruption Blocked . | . . . . . . . . . Effects 95 | . . . . . 19 18 46 12 Message Errors 25 | . . . . . 7 2 14 2 Matter Fused 19 | . . . . . 2 4 9 4 Heat Flow Errors 11 | . . . . . 1 3 6 1 Energy Discharges 8 | . . . . . 2 2 3 1 Parts Rejected 4 | . . . . . . 2 1 1 Parts Fused 1 | . . . . . . . 1 . Data Loss (minor) 13 | . . . . . 4 3 3 3 Data Loss (major) 7 | . . . . . . 1 6 . Misfires 2 | . . . . . 2 . . . Alerts 5 | . . . . . 1 1 3 . Overload Shots . | . . . . . . . . . Overflow Damage 2472 | . 333 401 . 487 786 20 410 35 Projectiles . | . . . . . . . . . Explosions 5 | . . . . . . 5 . . Melee 2467 | . 333 401 . 487 786 15 410 35 Knockbacks 18 | . 1 5 . 5 7 . . . Impact 15 | . 1 3 . 4 7 . . . Kinetic . | . . . . . . . . . Secondary 3 | . . 2 . 1 . . . . Self-Inflicted Damage 23 | . . . . . . 23 . . Shots 1 | . . . . . . 1 . . Rammed . | . . . . . . . . . Targets Rammed . | . . . . . . . . . Kicked . | . . . . . . . . . Crushed . | . . . . . . . . . Highest Temperature 380 | 380 . . . . 116 217 271 198 Average Temperature 131 | 196 . . . . 34 128 111 99 Received Heat Transfer 1239 | . 12 51 . 99 303 198 477 99 Effects 2 | 2 . . . . . . . . Interference 2 | 2 . . . . . . . . Siege Activations . | . . . . . . . . . Robots Corrupted . | . . . . . . . . . Combat Hostiles . | . . . . . . . . . Parts Fried 34 | . 6 9 . 6 13 . . . Impact Corruptions 71 | . 16 14 . 16 25 . . . Robots Melted . | . . . . . . . . . Combat Hostiles . | . . . . . . . . . Parts Melted 1 | 1 . . . . . . . . Heat Transferred 619 | 594 . . . . 25 . . . Parts Sabotaged . | . . . . . . . . . Parts Stolen . | . . . . . . . . . Parts Stripped . | . . . . . . . . . Power Chain Reactions . | . . . . . . . . . Missiles Intercepted . | . . . . . . . . . Alert | -11 -10 -10 -10 -9 -8 -8 -8 -8 ------- Run | Jun Mat Min Exi Min Mat Gar Mat Gar Peak Influence 646 | 30 146 130 . 297 392 470 646 602 Initial 317 | . 19 . . . 41 150 228 317 Average 293 | 17 82 51 . 144 240 309 443 461 Maximum Alert Level 2 | . . . . 1 1 2 2 2 Low Security (%) 33 | 100 100 100 . 70 25 28 2 . Level 1 29 | . . . . 29 74 39 13 26 Level 2 37 | . . . . . . 31 83 73 Level 3 . | . . . . . . . . . Level 4 . | . . . . . . . . . Level 5 . | . . . . . . . . . High Security . | . . . . . . . . . Max Security . | . . . . . . . . . Squads Dispatched 6 | . . . . . 1 . 5 . Investigation 1 | . . . . . . . 1 . Extermination . | . . . . . . . . . Reinforcement 5 | . . . . . 1 . 4 . Assault . | . . . . . . . . . Garrison . | . . . . . . . . . Intercept . | . . . . . . . . . Searches Triggered . | . . . . . . . . . Construction Impeded . | . . . . . . . . . Haulers Reinforced . | . . . . . . . . . Active Scanning Responses . | . . . . . . . . . Cargo Convoy Interrupts . | . . . . . . . . . Stealth | -11 -10 -10 -10 -9 -8 -8 -8 -8 --------- Run | Jun Mat Min Exi Min Mat Gar Mat Gar Distress Signals 12 | . 1 . . . 5 . 6 . Communications Jammed . | . . . . . . . . . Distress Signals . | . . . . . . . . . Times Spotted 125 | . 5 5 . 8 34 12 47 14 Peak Tracking Total 11 | . 2 2 . 4 6 2 11 5 Tactical Retreats 12 | . . . . 2 1 2 6 1 Traps | -11 -10 -10 -10 -9 -8 -8 -8 -8 ------- Run | Jun Mat Min Exi Min Mat Gar Mat Gar Traps Triggered 15 | . . . . . 5 4 3 3 Indirectly 4 | . . . . . . 3 . 1 Trap Hack Attempts . | . . . . . . . . . Triggered . | . . . . . . . . . Disarmed . | . . . . . . . . . Reprogrammed . | . . . . . . . . . Reused 4 | . . . . . . . . 4 Traps Extracted . | . . . . . . . . . Installed 4 | . . . . . . . . 4 Triggered 4 | . . . . . . . . 4 Most Traps Carried 4 | . . . . . . 4 4 4 Machines | -11 -10 -10 -10 -9 -8 -8 -8 -8 ---------- Run | Jun Mat Min Exi Min Mat Gar Mat Gar Machines Disabled 6 | . . . . . . 4 1 1 Max in Single Turn 1 | . . . . . . 1 1 1 Garrison Relay 2 | . . . . . . 1 . 1 Machines Repaired . | . . . . . . . . . Machines Sabotaged . | . . . . . . . . . Overloaded Fab Kills . | . . . . . . . . . Hacking | -11 -10 -10 -10 -9 -8 -8 -8 -8 --------- Run | Jun Mat Min Exi Min Mat Gar Mat Gar Machines Accessed 31 | . 6 . 1 . 9 2 13 . Terminals 22 | . 6 . . . 5 2 9 . Fabricators . | . . . . . . . . . Repair Stations 3 | . . . . . 1 . 2 . Recycling Units . | . . . . . . . . . Scanalyzers 3 | . . . . . 2 . 1 . Garrison Access 2 | . . . . . 1 . 1 . Total Hacks 135 | . 19 . 23 . 37 7 49 . Successful 85 | . 8 . 23 . 25 1 28 . Failed 50 | . 11 . . . 12 6 21 . Catastrophic 8 | . 1 . . . 2 2 3 . Database Lockouts . | . . . . . . . . . Manual 65 | . 15 . . . 22 . 28 . Terminals 81 | . 19 . . . 23 7 32 . Fabricators . | . . . . . . . . . Repair Stations 15 | . . . . . 4 . 11 . Recycling Units . | . . . . . . . . . Scanalyzers 14 | . . . . . 9 . 5 . Garrison Access 2 | . . . . . 1 . 1 . Terminal Hacks 34 | . 3 . 23 . 3 1 4 . Record 23 | . . . 23 . . . . . Prototype ID Bank 4 | . 2 . . . 1 . 1 . Terminal Index 2 | . . . . . 1 . 1 . Garrison Index 1 | . . . . . 1 . . . Unreport Threat 2 | . 1 . . . . . 1 . Recall Reinforcements 1 | . . . . . . . 1 . Garrison Registry 1 | . . . . . . 1 . . Fabricator Hacks . | . . . . . . . . . Repair Station Hacks 12 | . . . . . 2 . 10 . Scan Component 6 | . . . . . 1 . 5 . Repair 6 | . . . . . 1 . 5 . Recycling Unit Hacks . | . . . . . . . . . Scanalyzer 14 | . . . . . 9 . 5 . Insert Component 7 | . . . . . 4 . 3 . Analyze 7 | . . . . . 5 . 2 . Garrison Access Hacks 2 | . . . . . 1 . 1 . Unlock Access 2 | . . . . . 1 . 1 . Unauthorized Hacks 22 | . 5 . . . 9 . 8 . Terminals 22 | . 5 . . . 9 . 8 . Track 5 | . 1 . . . 2 . 2 . Assimilate 2 | . . . . . 2 . . . Botnet 13 | . 4 . . . 4 . 5 . Disrupt 1 | . . . . . . . 1 . Operators 1 | . . . . . 1 . . . Fabricators . | . . . . . . . . . Repair Stations . | . . . . . . . . . Recycling Units . | . . . . . . . . . Scanalyzers . | . . . . . . . . . Garrison Access . | . . . . . . . . . Data Cores Recovered 1 | . 1 . . . . . . . Used . | . . . . . . . . . Hacking Detections 24 | . 6 . . . 5 2 11 . Full Trace Events . | . . . . . . . . . Feedback Events . | . . . . . . . . . Feedback Blocked . | . . . . . . . . . Robot Schematics Acquired . | . . . . . . . . . Robots Built . | . . . . . . . . . Authchips . | . . . . . . . . . Time . | . . . . . . . . . Total Robot Build Rating . | . . . . . . . . . Part Schematics Acquired 6 | . . . . . 4 . 2 . Parts Built . | . . . . . . . . . Authchips . | . . . . . . . . . Time . | . . . . . . . . . Total Part Build Rating . | . . . . . . . . . Parts Repaired 6 | . . . . . 1 . 5 . Time 210 | . . . . . 32 . 178 . Parts Recycled . | . . . . . . . . . Recycled Matter . | . . . . . . . . . Retrieved Matter . | . . . . . . . . . Retrieved Components . | . . . . . . . . . Parts Scanalyzed 6 | . . . . . 4 . 2 . Part Schematics Acquired 6 | . . . . . 4 . 2 . Parts Damaged . | . . . . . . . . . Bothacking | -11 -10 -10 -10 -9 -8 -8 -8 -8 ------------ Run | Jun Mat Min Exi Min Mat Gar Mat Gar Used RIF Installer 1 | . . . . . . 1 . . Robots Hacked . | . . . . . . . . . Non-combat . | . . . . . . . . . Combat . | . . . . . . . . . Robot Hacks Applied . | . . . . . . . . . Relay Couplers Released 7 | . . . . . . 4 . 3 Machine Destruction 7 | . . . . . . 4 . 3 Attached 1 | . . . . . . . . 1 Fabnet Peak Effective % . | . . . . . . . . . Robots Rewired . | . . . . . . . . . Allies Hacked . | . . . . . . . . . Hacks Repelled . | . . . . . . . . . Allies | -11 -10 -10 -10 -9 -8 -8 -8 -8 -------- Run | Jun Mat Min Exi Min Mat Gar Mat Gar Total Allies 5 | . . . . 4 1 . . . Largest Group 4 | . . . . 4 2 1 . . Highest-Rated Group 71 | . . . . 71 24 10 . . Highest-Rated Ally 31 | . . . . 31 16 10 . . Total Orders 2 | . . . . . 2 . . . STAY 1 | . . . . . 1 . . . FOLLOW 1 | . . . . . 1 . . . Ally Attacks 56 | . . . . 20 36 . . . Total Damage 507 | . . . . 222 285 . . . Kills 10 | . . . . 7 3 . . . Allies Corrupted . | . . . . . . . . . Allies Melted . | . . . . . . . . . Intel | -11 -10 -10 -10 -9 -8 -8 -8 -8 ------- Run | Jun Mat Min Exi Min Mat Gar Mat Gar Robot Analysis Total . | . . . . . . . . . Derelict Logs Recovered 2 | . . 1 . 1 . . . . Drone Launches . | . . . . . . . . . Drone Recoveries . | . . . . . . . . . Exploration | -11 -10 -10 -10 -9 -8 -8 -8 -8 ------------- Run | Jun Mat Min Exi Min Mat Gar Mat Gar Turns Passed 6299 | 141 364 464 166 714 1252 647 1965 586 Spaces Moved 3939 | 56 316 418 169 619 738 396 891 336 Core 30 | 30 . . . . . . . . Treads 24 | . . . . . 1 . 23 . Legs 175 | . . . . . . . 175 . Wheels 3710 | 26 316 418 169 619 737 396 693 336 Hover . | . . . . . . . . . Flight . | . . . . . . . . . Fastest Speed 50 | 50 80 95 95 95 95 113 113 80 Average Speed 122 | 144 91 95 95 95 127 117 163 135 Slowest Speed 720 | 250 95 95 95 95 320 145 720 155 Overloaded Moves . | . . . . . . . . . Propulsion Burnouts . | . . . . . . . . . Robots Hopped . | . . . . . . . . . Cave-ins Triggered . | . . . . . . . . . Exploration Rate (%) 54 | 5 63 69 57 98 53 44 74 30 Regions Visited 8 Branch Regions 3 Pre-discovered Areas 3 | . . 1 1 1 . . . . Known Exits Taken 2 | . . . . . 1 . 1 . Unknown Exits Taken 5 | 1 1 1 1 1 . . . . Scrap Searched 2 | . . 1 . 1 . . . . Spaces Dug 12 | . . . . . 7 . 5 . Terrain Destroyed 12 | . . . . . 7 . 5 . Melee 12 | . . . . . 7 . 5 . Projectile . | . . . . . . . . . AOE . | . . . . . . . . . Terrain Rammed . | . . . . . . . . . Walls Destroyed . | . . . . . . . . . Machines Disabled . | . . . . . . . . . Actions | -11 -10 -10 -10 -9 -8 -8 -8 -8 --------- Run | Jun Mat Min Exi Min Mat Gar Mat Gar Total 4962 | 93 369 447 176 704 942 520 1275 436 Wait 491 | 2 14 11 . 58 72 66 230 38 Move 3930 | 55 315 417 168 618 737 394 890 336 Hop . | . . . . . . . . . Pick Up 114 | 14 16 1 3 3 31 10 33 3 Fast Attach . | . . . . . . . . . Attach 48 | 6 2 . . 1 13 3 17 6 Detach . | . . . . . . . . . Swap 33 | 2 4 . 2 1 6 7 6 5 Drop 55 | 2 7 . 3 3 13 4 16 7 Fire 17 | 12 . . . . 1 3 . 1 Melee 254 | . 11 18 . 20 69 33 83 20 Ram . | . . . . . . . . . Kick . | . . . . . . . . . Crush . | . . . . . . . . . Escape Stasis 16 | . . . . . . . . 16 Rewire . | . . . . . . . . . Trap 4 | . . . . . . . . 4 Miscellaneous . | . . . . . . . . . Route ------- -11/Junkyard -10/Materials (discovered 2 exits: [*Mat] / [*Min]) -10/Mines (discovered 3 exits: [*Mat x2] / *Exi) -10/Exiles -9/Mines (discovered 2 exits: *Mat x2) -8/Materials -8/Garrison (discovered 3 exits: *Mat x3) -8/Materials (discovered 3 exits: [*Fac x2] / Gar) -8/Garrison History --------- Turn | Location | Event 9 | -11/Junkyard | Discovered new exit (range 15) 142 | -11/Junkyard | Entered Materials 313 | -10/Materials | Build established: Mutant 357 | -10/Materials | Discovered new exit (range 7) 415 | -10/Materials | Discovered new exit (range 8) 506 | -10/Materials | Entered Mines 507 | -10/Mines | Learned location of Storage (-7) 549 | -10/Mines | Discovered new exit (range 10) 720 | -10/Mines | Discovered new exit (range 10) 854 | -10/Mines | Deemed a non-threat by the Exiles lab entrance 855 | -10/Mines | Discovered new exit (range 5) 889 | -10/Mines | Learned Materials terminal intel 970 | -10/Mines | Entered Exiles 1001 | -10/Exiles | Met 8R-AWN 1016 | -10/Exiles | Met EX-HEX 1053 | -10/Exiles | Met EX-DEC 1058 | -10/Exiles | Learned location of Zion (-7) 1126 | -10/Exiles | Discovered new exit (range 10) 1136 | -10/Exiles | Entered Mines 1193 | -9/Mines | Assisted by bots powering up and referring to "LRC-V3" 1256 | -9/Mines | Discovered new exit (range 10) 1367 | -9/Mines | Received a Mining Laser from a helpful Derelict 1483 | -9/Mines | Discovered new exit (range 5) 1850 | -9/Mines | Entered Materials 1850 | -8/Materials | Accompanied by 3 allies 1850 | -8/Materials | Evolved 4 slots: Propulsion x1, Utility x3 1851 | -8/Materials | Loaded intel: 12 terminal locations 2675 | -8/Materials | Lost 3 parts (1n1u1w) 2798 | -8/Materials | Repaired Arm. Wheel 3077 | -8/Materials | Identified exit to Garrison 3102 | -8/Materials | Entered Garrison 3102 | -8/Garrison | Accompanied by 1 ally 3104 | -8/Garrison | Triggered checkpoint 3162 | -8/Garrison | Triggered checkpoint 3294 | -8/Garrison | Triggered checkpoint 3307 | -8/Garrison | Garrison Relay disabled 3370 | -8/Garrison | Discovered new exit (range 79) 3370 | -8/Garrison | Discovered new exit (range 60) 3370 | -8/Garrison | Discovered new exit (range 57) 3463 | -8/Garrison | Triggered checkpoint 3642 | -8/Garrison | Installed Relay Interface Framework 3664 | -8/Garrison | Build established: Hacker-Mutant 3749 | -8/Garrison | Entered Materials 3936 | -8/Materials | Core integrity fell below 50% 4012 | -8/Materials | Destroyed 8 combat bots 4209 | -8/Materials | Discovered new exit (range 3) 4648 | -8/Materials | Core integrity fell below 20% 4871 | -8/Materials | Repaired Imp. Light Armor Plating 5143 | -8/Materials | Repaired Chainsword 5175 | -8/Materials | Repaired Wheel 5203 | -8/Materials | Repaired Wheel 5249 | -8/Materials | Repaired Proton Missile Launcher 5570 | -8/Materials | Discovered new exit (range 16) 5713 | -8/Materials | Identified exit to Garrison 5714 | -8/Materials | Entered Garrison 5804 | -8/Garrison | Triggered checkpoint 5872 | -8/Garrison | Garrison Relay disabled 5932 | -8/Garrison | Triggered checkpoint 6206 | -8/Garrison | Lost 3 parts (1p1n1u) 6300 | -8/Garrison | Destroyed by C-17 Slicer with Blade Saw Last Messages --------------- 06175_ Imp. Ion Engine destroyed. 06176_ Slug penetrates Earth. 06188_ Penetrated by Slug. 06195_ Extracted 10 matter. 06212_ Chainsword follow-up attack on H-55 Commando. 06214_ Penetrated by Slug. 06220_ H-55 Commando destroyed. 06221_ Penetrated by Slug. 06224_ H-55 Commando Assault Rifle severed. 06227_ Penetrated by Slug. 06229_ Chainsword follow-up attack on H-55 Commando. 06232_ Penetrated by Slug. 06233_ H-55 Commando destroyed. 06266_ PKRYB QBRW7:&LILLQWAFDT|RZPJJXL#/6 06297_ Hrd. Medium Armor Plating destroyed. 06297_ Knocked back. 06298_ Wheel destroyed. 06298_ Lgt. Nuclear Core destroyed. 06298_ Knocked back. 06299_ Dropped Huge Storage Unit. Map ----- +----------------------------------------------------+ | ?????????????????????????????????????????????????? | | ?????????????????????????????????????????????????? | | ????????????????????????????????????????????####?? | | ???????????????????????????????????????????? ##? | | ???????????????????????????????????????????## #? | | ???????????????????????????????????????????# #? | | ???????????????????????????????????????????# #? | | ???????????????????????????????????????????## ###? | | ????????????????????????????????????????????# #??? | | ????????????????????????????????????????????# #?## | | ????????????????????????????????????????????# #?#" | | ????????????????????????????????????????????# #### | | ????????????????????????????????????????##### | | ????????????????????????????????????????#!!!# #### | | ????????????????????????????????????????#! !# #??? | | ????????????????????????????????????????#! !#%###? | | ????????????????????????????????????????## ##[=*#? | | ?????????????????????????????????????????#[%==%=#? | | ????????????????????????####?????????????####=[[#? | | ???????????????????????? #????????????????#%###? | | ???????????????????????? #????????????????#*#??? | | ????????????????????????# #????????????????# #??? | | ????????????????????????# #????????????????# #??? | | ??????????????????????### #????????????????# #??? | | ??????????????????????? /![#????????????????# #??? | | ????????????????????????#@]#???????????????## #??? | | ????????????????????????#[c#??????????????### ###? | | ????????????????#########]c###########???## # ##? | | ??????????? ![! #???# ## | | ??????????????????####### #???### | | ????????????????????????# ######## #????# | | ????????????????????????# #??????# ###### ### | | ????????????????????????# #??????# ## ## | | ????????????????????????# #??????# ## " | | ????????????????????????# #??????# ### =## ### | | ????????????????????????# #??????# #####%# ## | | ????????????????????????# #??????# ## [# ## | | ????????????????????????# #?????## ## # % ## | | ????????????????????????# ??????# = # | | ????????????????????????# | | ?????????????????????? | | ??????????????????????############ ## ## ## | | ?????????????????????????????????# ## ## #? | | ?????????????????????????????????" | | ?????????????????????????????????" | | ?????????????????????????????????" | | ?????????????????????????????????" | | ?????????????????????????????????# ## ## ## | | ?????????????????????????????????# ?# #? #? | | ?????????????????????????????????# ? ? ? | +----------------------------------------------------+ Best States ------------- Heat Dissipation 31 Energy Generation 14 Energy Capacity 265 Matter Stores 300 Matter Capacity 300 Sight Range 16 Terrain Scan Density 10 Armor Coverage 225 Evasion (%) 50 Targeting Accuracy 5 Melee Accuracy 5 Recoil Reduction 2 Offensive Hacking 10 Defensive Hacking 20 Relay Coupler Types 1 Relay Coupler Value 44 Item Schematics ----------------- Datajack | -8/Materials | Scanalyzed Hacking Suite | -8/Materials | Scanalyzed System Shield | -8/Materials | Scanalyzed Huge Storage Unit | -8/Materials | Scanalyzed Hcp. Storage Unit | -8/Materials | Scanalyzed Cryofiber Web | -8/Materials | Scanalyzed Robot Schematics ------------------ None Fabricated ------------ Nothing Alien Tech Used ----------------- None Achievements -------------- None Challenges ------------ None Game ------ Seed CommConcussiveScythe Manual? 0 Play Time 00:51:22 Cumulative 326.0 hours Start 2023.03.13 @ 21:47:59 End 2023.03.13 @ 22:42:33 Sessions 1 Manual Loads 0 Difficulty Rogue Special Mode None Game No. 370 Rogue 370 Adventurer 0 Explorer 0 Win Type - Total 6 Types 3/1/1/1/0/0/0/0/0 Lore% 63 Gallery% 79 Achievement% 67 Wizard Run 0 Options --------- ASCII 0 Keyboard 0 Movement Numpad Keybinds 0 Fullscreen 1 Font 16/Terminus Map View 75x55 Tactical HUD 1 Map Filters NONE Filters NONE Steam 1 RUN: 3e3a702f-35b1-4de9-9f08-f5251cdc2778